fUST/lending_fUST_20260203
["ID","MTS","AMOUNT","RATE_DAILY","PERIOD"]
[404379255,1770087016853,1698.96944382,0.00013001,2]
[404379256,1770087017293,2095.75,0.000109,2]
[404379257,1770087017758,2095.75,0.00011,2]
[404379258,1770087018432,2095.75,0.000111,2]
[404379259,1770087019015,2095.75,0.000112,2]
[404379260,1770087019585,2095.75,0.000113,2]
[404379261,1770087020151,2095.75,0.000114,2]
[404379262,1770087020793,2095.75,0.000114,2]
[404379263,1770087021288,2095.75,0.000115,2]
[404379264,1770087021834,2095.75,0.000116,2]
[404379265,1770087022391,2095.75,0.000117,2]
[404379266,1770087022856,2095.75,0.000118,2]
[404379267,1770087023895,2095.75,0.000119,2]
[404379268,1770087024467,2095.75,0.000119,2]
[404379269,1770087024615,1450.39288266,0.00013001,2]
[404379270,1770087025027,2095.75,0.00012,2]
[404379271,1770087025589,2095.75,0.000121,2]
[404379272,1770087026241,2095.75,0.000122,2]
[404379273,1770087026781,2095.75,0.000123,2]
[404379274,1770087027241,2095.75,0.000123,2]
[404379275,1770087027711,2095.75,0.000124,2]
[404379276,1770087028332,2095.75,0.000125,2]
[404379278,1770087028793,2095.75,0.000126,2]
[404379279,1770087029264,2095.75,0.000127,2]
[404379280,1770087029842,2095.75,0.000128,2]
[404379281,1770087030417,2095.75,0.000128,2]
[404379282,1770087030903,2095.75,0.000129,2]
[404379283,1770087031470,2095.75,0.00013,2]
[404379307,1770087032448,-3763.52891839,0.0001314,2]
[404379308,1770087032457,-300.0,0.00013271,2]
[404379309,1770087032467,-561.45410961,0.00013271,2]
[404379338,1770087038566,-638.54589039,0.00013271,2]
[404379340,1770087038576,-300.0,0.00013272,2]
[404379342,1770087038588,-300.0,0.00013272,2]
[404379344,1770087038598,-300.0,0.00013272,2]
[404379347,1770087038608,-300.0,0.00013272,2]
[404379348,1770087038619,-500.0,0.00013273,2]
[404379351,1770087038629,-500.0,0.00013273,2]
[404379353,1770087038639,-500.0,0.00013273,2]
[404379355,1770087038648,-500.0,0.00013273,2]
[404379357,1770087038658,-438.66764815,0.00013273,2]
[404379360,1770087038668,-500.0,0.00013273,2]
[404379362,1770087038678,-500.0,0.00013273,2]
[404379365,1770087038687,-500.0,0.00013273,2]
[404379368,1770087038696,-500.0,0.00013273,2]
[404379371,1770087038706,-500.0,0.00013273,2]
[404379373,1770087038715,-26126.14385182,0.00013273,2]
[404379375,1770087038724,-500.0,0.00013273,2]
[404379377,1770087038734,-500.0,0.00013273,2]
[404379380,1770087038744,-326.89978965,0.00013273,2]
[404379381,1770087038754,-347.03376695,0.00013273,2]
[404379383,1770087038763,-425.78553035,0.00013273,2]
[404379386,1770087038773,-205.23675119,0.00013273,2]
[404379388,1770087038782,-500.0,0.00013273,2]
[404379390,1770087038792,-500.0,0.00013273,2]
[404379391,1770087038801,-500.0,0.00013273,2]
[404379393,1770087038810,-300.0,0.00013673,2]
[404379396,1770087038820,-532.79463133,0.00013698,2]
[404379397,1770087038829,-500.0,0.00013698,2]
[404379399,1770087038840,-500.0,0.00013699,2]
[404379402,1770087038849,-500.0,0.00013699,2]
[404379403,1770087038859,-474.36755429,0.00013699,2]
[404379405,1770087038867,-500.0,0.00013699,2]
[404379407,1770087038876,-639.26170718,0.00013699,2]
[404379409,1770087038885,-501.10095419,0.00013699,2]
[404379411,1770087038895,-500.0,0.00013699,2]
[404379413,1770087038904,-433.30565537,0.00013821,2]
[404379415,1770087038913,-1000.0,0.00013821,2]
[404379417,1770087038924,-923.26460722,0.00013821,2]
[404379419,1770087038933,-267.65962509,0.00013821,2]
[404379421,1770087038943,-262.87439204,0.00014247,2]
[404379423,1770087038954,-759.55539897,0.00014247,2]
[404379425,1770087038963,-500.0,0.00014247,2]
[404379428,1770087038974,-1000.0,0.00014247,2]
[404379430,1770087038984,-1000.0,0.00014247,2]
[404379432,1770087038994,-353.66994885,0.00014368,2]
[404379433,1770087039003,-384.82582551,0.00014368,2]
[404379435,1770087039012,-600.0,0.0001453,2]
[404379437,1770087039022,-165.0,0.00014551,2]
[404379439,1770087039031,-420.0,0.00014551,2]
[404379441,1770087039040,-303.0,0.00014551,2]
[404379443,1770087039049,-420.0,0.00014598,2]
[404379445,1770087039059,-1680.0,0.00014598,2]
[404379447,1770087039069,-848.473489,0.00014795,2]
[404379449,1770087039079,-1500.0,0.00014795,2]
[404379451,1770087039088,-181.70064659,0.00015272,2]
[404379453,1770087039099,-2000.0,0.00015342,2]
[404379455,1770087039108,-564.71141812,0.0001589,2]
[404379457,1770087039117,-587.0,0.00015953,2]
[404379459,1770087039127,-720.0,0.00015984,2]
[404379461,1770087039137,-181.0,0.00016057,2]
[404379463,1770087039147,-1959.0,0.00016058,2]
[404379465,1770087039156,-475.40862141,0.00017469,2]
[404379467,1770087039165,-733.0,0.0001749,2]
[404379469,1770087039175,-864.0,0.00017582,2]
[404379471,1770087039184,-150.0,0.00017808,2]
[404379473,1770087039193,-302.27958465,0.00018356,2]
[404379475,1770087039203,-303.10001603,0.000189,2]
[404379477,1770087039212,-303.10001603,0.00019089,2]
[404379479,1770087039222,-9006.08622382,0.0001924,2]
[404379481,1770087039231,-303.10001603,0.00019278,2]
[404379483,1770087039240,-1000.0,0.0001934,2]
[404379485,1770087039250,-303.10001603,0.00019467,2]
[404379487,1770087039259,-303.10001603,0.00019656,2]
[404379489,1770087039268,-1389.11,0.00019844,2]
[404379491,1770087039277,-605.68029535,0.00019845,4]
[404379493,1770087039288,-200.2872393,0.00020756,2]
[404379494,1770087039297,-1000.0,0.00021274,10]
[404379496,1770087039308,-244.0,0.00021274,10]
[404379498,1770087039317,-1000.0,0.00023401,10]
[404379500,1770087039326,-492.0,0.00023401,10]
[404379502,1770087039335,-173.0,0.00025742,10]
[404379504,1770087039344,-663.91764029,0.00029153,2]
[404379505,1770087039353,-269.19994722,0.00030369,2]
[404379507,1770087039362,-215.17241067,0.00032788,33]
[404379509,1770087039371,-1195.05175252,0.00038085,2]
[404379511,1770087039380,-740.91124423,0.0003812,7]
[404379513,1770087039389,-10000.0,0.00038122,2]
[404379515,1770087039398,-157.31,0.00038356,120]
[404379517,1770087039407,-215.14,0.00039628,2]
[404379519,1770087039416,-150.06,0.00039628,2]
[404379521,1770087039425,-484.559905,0.0003969,2]
[404379523,1770087039434,-150.04759169,0.00039728,2]
[404379525,1770087039443,-174.96182521,0.00046766,5]
[404379527,1770087039454,-167.0,0.0005,120]
[404379529,1770087039463,-231.63,0.00050136,30]
[404379531,1770087039472,-760.11999694,0.000504,2]
[404379533,1770087039482,-333.54,0.0005049,30]
[404379535,1770087039491,-894.25,0.0005049,30]
[404379537,1770087039501,-263.54484654,0.0005049,4]
[404379539,1770087039510,-1389.11,0.00050498,2]
[404379541,1770087039520,-1389.11,0.00050499,2]
[404379543,1770087039529,-1389.11,0.00050499,2]
[404379545,1770087039538,-1389.11,0.00050499,2]
[404379547,1770087039547,-1389.11,0.00050499,2]
[404379549,1770087039557,-1389.11,0.00050499,2]
[404379551,1770087039567,-50315.59716792,0.000505,60]
[404379554,1770087039582,-49684.40283208,0.000505,60]
[404379556,1770087039591,-322.9,0.000505,30]
[404379558,1770087039601,-300.0,0.00051945,120]
[404379559,1770087039610,-150.04759169,0.00052883,2]
[404379561,1770087039619,-740.91124423,0.00054031,2]
[404379563,1770087039628,-300.0,0.00054685,120]
[404379565,1770087039637,-1389.11,0.00054793,2]
[404379566,1770087039646,-5890.7,0.00054794,120]
[404379567,1770087039657,-500.0,0.00054794,120]
[404379568,1770087039665,-500.0,0.00054794,120]
[404379569,1770087039674,-1041.66666667,0.00054794,120]
[404379570,1770087039683,-500.49375459,0.00054794,2]
[404379571,1770087039692,-500.0,0.00054794,120]
[404379572,1770087039702,-500.0,0.00054794,120]
[404379573,1770087039710,-500.0,0.00054794,120]
[404379574,1770087039719,-500.0,0.00054794,120]
[404379575,1770087039728,-160.15836639,0.00054794,120]
[404379576,1770087039737,-500.54910677,0.00054794,120]
[404379577,1770087039746,-500.0,0.00054794,120]
[404379578,1770087039754,-500.0,0.00054794,120]
[404379579,1770087039767,-163.80320263,0.00054794,120]
[404379580,1770087039776,-550.0,0.00054794,30]
[404379581,1770087039786,-500.0,0.00054794,120]
[404379582,1770087039795,-152.43238299,0.00054794,120]
[404379583,1770087039803,-192.49793463,0.00054794,120]
[404379584,1770087039812,-500.0,0.00054794,120]
[404379585,1770087039821,-156.53816359,0.00054794,120]
[404379586,1770087039829,-501.68249955,0.00054794,2]
[404379587,1770087039838,-500.0,0.00054794,120]
[404379588,1770087039847,-500.06000655,0.00054794,120]
[404379589,1770087039856,-502.83850815,0.00054794,120]
[404379590,1770087039866,-515.77004529,0.00054794,2]
[404379591,1770087039875,-528.99491105,0.00054794,120]
[404379592,1770087039884,-185.68278717,0.00054794,120]
[404379598,1770087039972,-500.0,0.00054794,120]
[404379600,1770087039983,-500.0,0.00054794,120]
[404379602,1770087039993,-578.9297891,0.00054794,120]
[404379604,1770087040003,-500.0,0.00054794,120]
[404379607,1770087040012,-588.34357465,0.00054794,120]
[404379609,1770087040021,-500.0,0.00054794,120]
[404379611,1770087040031,-521.50786456,0.00054794,120]
[404379614,1770087040042,-500.0,0.00054794,120]
[404379616,1770087040060,-887.25,0.00054794,120]
[404379618,1770087040070,-500.0,0.00054794,2]
[404379620,1770087040079,-500.0,0.00054794,120]
[404379622,1770087040090,-300.0,0.00054794,2]
[404379624,1770087040100,-500.0,0.00054794,120]
[404379626,1770087040110,-2088.2,0.00054794,120]
[404379628,1770087040122,-500.0,0.00054794,120]
[404379630,1770087040131,-500.0,0.00054794,120]
[404379632,1770087040141,-500.0,0.00054794,120]
[404379634,1770087040151,-500.0,0.00054794,120]
[404379635,1770087040161,-500.0,0.00054794,120]
[404379637,1770087040171,-500.0,0.00054794,120]
[404379639,1770087040181,-500.0,0.00054794,120]
[404379642,1770087040191,-500.0,0.00054794,120]
[404379644,1770087040203,-500.0,0.00054794,120]
[404379646,1770087040213,-500.0,0.00054794,120]
[404379648,1770087040223,-500.0,0.00054794,120]
[404379650,1770087040234,-500.0,0.00054794,120]
[404379652,1770087040243,-500.0,0.00054794,120]
[404379654,1770087040252,-500.0,0.00054794,120]
[404379656,1770087040262,-500.0,0.00054794,120]
[404379658,1770087040272,-500.0,0.00054794,120]
[404379660,1770087040282,-500.0,0.00054794,120]
[404379663,1770087040292,-500.0,0.00054794,120]
[404379666,1770087040302,-500.0,0.00054794,120]
[404379668,1770087040311,-500.0,0.00054794,120]
[404379670,1770087040320,-500.0,0.00054794,120]
[404379672,1770087040331,-500.0,0.00054794,120]
[404379674,1770087040343,-500.0,0.00054794,120]
[404379676,1770087040354,-591.09760323,0.00054794,120]
[404379679,1770087040364,-1019.02,0.00054794,120]
[404379680,1770087040374,-500.0,0.00054794,120]
[404379683,1770087040386,-981.74,0.00054794,120]
[404379684,1770087040396,-500.0,0.00054794,2]
[404379686,1770087040407,-9824.34,0.00054794,120]
[404379688,1770087040417,-531.20502046,0.00054794,120]
[404379691,1770087040427,-729.71,0.00054794,120]
[404379692,1770087040438,-152.42277253,0.00054794,120]
[404379694,1770087040449,-500.0,0.00054794,120]
[404379696,1770087040460,-152.83832006,0.00054794,120]
[404379699,1770087040471,-298.90005501,0.00054794,120]
[404379701,1770087040481,-150.0,0.00054795,14]
[404379703,1770087040491,-250.0,0.00055342,14]
[404379705,1770087040501,-167.0,0.000554,120]
[404379706,1770087040510,-350.0,0.0005589,14]
[404379708,1770087040520,-760.11999694,0.00056583,2]
[404379710,1770087040529,-1389.11,0.00060272,2]
[404379712,1770087040539,-5890.7,0.00060273,120]
[404379714,1770087040549,-500.0,0.00060273,120]
[404379716,1770087040559,-500.0,0.00060273,120]
[404379718,1770087040570,-500.0,0.00060273,120]
[404379720,1770087040585,-500.0,0.00060273,120]
[404379722,1770087040596,-500.0,0.00060273,120]
[404379724,1770087040607,-508.46951108,0.00060273,120]
[404379725,1770087040618,-500.0,0.00060273,120]
[404379728,1770087040632,-450.0,0.00060273,30]
[404379729,1770087040642,-500.0,0.00060273,120]
[404379732,1770087040654,-500.0,0.00060273,120]
[404379734,1770087040666,-500.0,0.00060273,120]
[404379735,1770087040676,-500.0,0.00060273,120]
[404379737,1770087040686,-887.25,0.00060273,120]
[404379739,1770087040696,-500.0,0.00060273,120]
[404379741,1770087040706,-500.0,0.00060273,2]
[404379743,1770087040716,-500.0,0.00060273,120]
[404379745,1770087040726,-300.0,0.00060273,2]
[404379747,1770087040736,-500.0,0.00060273,120]
[404379749,1770087040746,-2088.2,0.00060273,120]
[404379751,1770087040757,-1019.02,0.00060273,120]
[404379753,1770087040769,-500.0,0.00060273,120]
[404379755,1770087040779,-981.74,0.00060273,120]
[404379757,1770087040790,-500.0,0.00060273,2]
[404379759,1770087040801,-9824.34,0.00060273,120]
[404379761,1770087040813,-729.71,0.00060273,120]
[404379763,1770087040823,-500.0,0.00060273,120]
[404379765,1770087040834,-167.0,0.000608,120]
[404379767,1770087040844,-760.11999694,0.00062767,2]
[404379769,1770087040855,-1389.11,0.00065752,2]
[404379771,1770087040865,-5890.7,0.00065753,120]
[404379773,1770087040875,-500.0,0.00065753,120]
[404379775,1770087040885,-499.3166042,0.00065753,120]
[404379777,1770087040895,-500.0,0.00065753,120]
[404379779,1770087040906,-500.0,0.00065753,120]
[404379781,1770087040915,-500.0,0.00065753,120]
[404379783,1770087040925,-500.0,0.00065753,120]
[404379785,1770087040935,-500.0,0.00065753,120]
[404379786,1770087040945,-500.0,0.00065753,120]
[404379788,1770087040956,-500.0,0.00065753,120]
[404379790,1770087040966,-887.25,0.00065753,120]
[404379792,1770087040978,-500.0,0.00065753,120]
[404379794,1770087040987,-500.0,0.00065753,2]
[404379796,1770087040997,-500.0,0.00065753,120]
[404379798,1770087041007,-500.0,0.00065753,120]
[404379800,1770087041018,-2088.2,0.00065753,120]
[404379801,1770087041028,-1019.02,0.00065753,120]
[404379803,1770087041039,-500.0,0.00065753,120]
[404379805,1770087041050,-981.74,0.00065753,120]
[404379808,1770087041066,-9824.34,0.00065753,120]
[404379811,1770087041085,-729.71,0.00065753,120]
[404379814,1770087041095,-500.0,0.00065753,120]
[404379816,1770087041106,-167.0,0.000662,120]
[404379818,1770087041116,-760.11999694,0.0006895,2]
[404379820,1770087041126,-263.54484654,0.0006999,6]
[404379822,1770087041137,-45625.63722737,0.0007,30]
[404379824,1770087041146,-45625.63722737,0.0007,30]
[404379826,1770087041156,-1389.11,0.00071231,2]
[404379828,1770087041165,-5890.7,0.00071232,120]
[404379830,1770087041176,-500.0,0.00071232,120]
[404379832,1770087041187,-500.0,0.00071232,120]
[404379834,1770087041198,-500.0,0.00071232,120]
[404379836,1770087041207,-500.0,0.00071232,120]
[404379838,1770087041218,-500.0,0.00071232,120]
[404379840,1770087041228,-500.0,0.00071232,120]
[404379843,1770087041239,-500.0,0.00071232,120]
[404379844,1770087041249,-500.0,0.00071232,120]
[404379846,1770087041258,-887.25,0.00071232,120]
[404379848,1770087041267,-500.0,0.00071232,120]
[404379850,1770087041277,-500.0,0.00071232,2]
[404379852,1770087041287,-500.0,0.00071232,120]
[404379854,1770087041297,-500.0,0.00071232,120]
[404379856,1770087041306,-2088.2,0.00071232,120]
[404379858,1770087041318,-1019.02,0.00071232,120]
[404379860,1770087041328,-500.0,0.00071232,120]
[404379862,1770087041339,-981.74,0.00071232,120]
[404379864,1770087041349,-9824.34,0.00071232,120]
[404379866,1770087041359,-729.71,0.00071232,120]
[404379869,1770087041370,-500.0,0.00071232,120]
[404379870,1770087041381,-167.0,0.000716,120]
[404379872,1770087041393,-207.927786,0.00074709,60]
[404379874,1770087041402,-760.11999694,0.00075133,2]
[404379876,1770087041413,-263.54484654,0.00075223,6]
[404379878,1770087041423,-200.0,0.00075232,90]
[404379880,1770087041434,-200.0,0.00075232,90]
[404379882,1770087041446,-165.13470443,0.00075232,60]
[404379884,1770087041457,-45625.63722737,0.00075233,30]
[404379886,1770087041467,-45625.63722737,0.00075233,30]
[404379888,1770087041477,-734.759858,0.00076,60]
[404379890,1770087041487,-5890.7,0.00076712,120]
[404379892,1770087041496,-500.0,0.00076712,120]
[404379894,1770087041506,-500.0,0.00076712,120]
[404379896,1770087041517,-500.0,0.00076712,120]
[404379898,1770087041528,-500.0,0.00076712,120]
[404379900,1770087041539,-500.0,0.00076712,120]
[404379902,1770087041549,-500.0,0.00076712,120]
[404379904,1770087041560,-500.0,0.00076712,120]
[404379906,1770087041570,-500.0,0.00076712,120]
[404379908,1770087041584,-887.25,0.00076712,120]
[404379910,1770087041594,-500.0,0.00076712,120]
[404379912,1770087041604,-500.0,0.00076712,2]
[404379914,1770087041614,-500.0,0.00076712,120]
[404379916,1770087041625,-500.0,0.00076712,120]
[404379918,1770087041635,-2088.2,0.00076712,120]
[404379920,1770087041644,-1019.02,0.00076712,120]
[404379922,1770087041654,-209.43502761,0.00076712,120]
[404379924,1770087041665,-981.74,0.00076712,120]
[404379926,1770087041675,-9824.34,0.00076712,120]
[404379928,1770087041684,-729.71,0.00076712,120]
[404379930,1770087041694,-500.0,0.00076712,120]
[404379932,1770087041704,-660.29,0.000768,14]
[404379934,1770087041713,-167.0,0.00077,120]
[404379936,1770087041722,-330.146215,0.00078081,60]
[404379938,1770087041732,-214.0,0.0008,120]
[404379940,1770087041741,-1389.11,0.0008219,2]
[404379942,1770087041750,-5890.7,0.00082191,120]
[404379944,1770087041759,-500.0,0.00082191,120]
[404379946,1770087041768,-508.16,0.00082191,120]
[404379948,1770087041778,-500.0,0.00082191,120]
[404379950,1770087041788,-294.59592678,0.00082191,120]
[404379952,1770087041798,-497.90202022,0.00082191,120]
[404379954,1770087041807,-500.0,0.00082191,120]
[404379956,1770087041816,-500.0,0.00082191,120]
[404379958,1770087041826,-500.0,0.00082191,120]
[404379960,1770087041835,-887.25,0.00082191,120]
[404379962,1770087041844,-551.81855476,0.00082191,120]
[404379963,1770087041853,-500.0,0.00082191,2]
[404379965,1770087041862,-500.0,0.00082191,120]
[404379967,1770087041871,-500.0,0.00082191,120]
[404379969,1770087041880,-2088.2,0.00082191,120]
[404379971,1770087041889,-1019.02,0.00082191,120]
[404379973,1770087041899,-981.74,0.00082191,120]
[404379975,1770087041909,-9824.34,0.00082191,120]
[404379977,1770087041919,-729.71,0.00082191,120]
[404379980,1770087041930,-500.0,0.00082191,120]
[404379981,1770087041938,-3000.0,0.000845,120]
[404379984,1770087041948,-1389.11,0.0008767,2]
[404379991,1770087042022,-5890.7,0.00087671,120]
[404379993,1770087042031,-500.0,0.00087671,120]
[404379994,1770087042040,-500.0,0.00087671,120]
[404379996,1770087042049,-500.0,0.00087671,120]
[404379998,1770087042057,-500.0,0.00087671,120]
[404380000,1770087042066,-887.25,0.00087671,120]
[404380001,1770087042074,-500.0,0.00087671,2]
[404380003,1770087042084,-500.0,0.00087671,120]
[404380005,1770087042093,-500.0,0.00087671,120]
[404380007,1770087042102,-2088.2,0.00087671,120]
[404380008,1770087042111,-1019.02,0.00087671,120]
[404380010,1770087042120,-981.74,0.00087671,120]
[404380012,1770087042129,-9824.34,0.00087671,120]
[404380013,1770087042138,-729.71,0.00087671,120]
[404380015,1770087042147,-500.0,0.00087671,120]
[404380017,1770087042155,-150.0,0.0008778,120]
[404380019,1770087042164,-1022.943144,0.0008778,120]
[404380021,1770087042173,-1895.886289,0.0008778,120]
[404380022,1770087042182,-2768.829434,0.0008778,120]
[404380024,1770087042191,-3641.772579,0.0008778,120]
[404380026,1770087042200,-4514.715724,0.0008778,120]
[404380027,1770087042209,-5387.658869,0.0008778,120]
[404380029,1770087042218,-6260.602013,0.0008778,120]
[404380031,1770087042227,-7133.545158,0.0008778,120]
[404380033,1770087042237,-8006.488303,0.0008778,120]
[404380034,1770087042246,-354.35580817,0.00089942,5]
[404380036,1770087042255,-2000.0,0.0009,120]
[404380038,1770087042264,-699.14745352,0.0009069,5]
[404380040,1770087042273,-150.04759169,0.00092348,2]
[404380041,1770087042281,-1389.11,0.00093149,2]
[404380043,1770087042290,-5890.7,0.0009315,120]
[404380045,1770087042299,-500.0,0.0009315,120]
[404380047,1770087042307,-500.0,0.0009315,120]
[404380048,1770087042316,-500.0,0.0009315,120]
[404380050,1770087042324,-500.0,0.0009315,120]
[404380052,1770087042333,-887.25,0.0009315,120]
[404380053,1770087042342,-500.0,0.0009315,2]
[404380055,1770087042350,-500.0,0.0009315,120]
[404380057,1770087042359,-500.0,0.0009315,120]
[404380059,1770087042368,-2088.2,0.0009315,120]
[404380060,1770087042377,-1019.02,0.0009315,120]
[404380062,1770087042385,-981.74,0.0009315,120]
[404380064,1770087042394,-9824.34,0.0009315,120]
[404380065,1770087042404,-729.71,0.0009315,120]
[404380067,1770087042413,-500.0,0.0009315,120]
[404380069,1770087042422,-1389.11,0.00098629,2]
[404380071,1770087042431,-5890.7,0.0009863,120]
[404380073,1770087042440,-500.0,0.0009863,120]
[404380074,1770087042448,-500.0,0.0009863,120]
[404380076,1770087042457,-500.0,0.0009863,120]
[404380078,1770087042466,-273.84100057,0.0009863,120]
[404380079,1770087042475,-887.25,0.0009863,120]
[404380081,1770087042485,-500.0,0.0009863,2]
[404380083,1770087042494,-500.0,0.0009863,120]
[404380085,1770087042503,-522.03605614,0.0009863,120]
[404380087,1770087042512,-2088.2,0.0009863,120]
[404380089,1770087042522,-1019.02,0.0009863,120]
[404380090,1770087042531,-981.74,0.0009863,120]
[404380092,1770087042540,-9824.34,0.0009863,120]
[404380094,1770087042549,-729.71,0.0009863,120]
[404380096,1770087042557,-500.0,0.0009863,120]
[404380097,1770087042567,-372.62210988,0.000988,120]
[404380098,1770087042576,-266.28,0.00099419,120]
[404380100,1770087042594,-937.85659383,0.001,120]
[404380102,1770087042603,-150.0,0.001026,120]
[404380104,1770087042612,-238.578158,0.001026,120]
[404380105,1770087042621,-327.156317,0.001026,120]
[404380107,1770087042631,-415.734475,0.001026,120]
[404380109,1770087042640,-504.312634,0.001026,120]
[404380111,1770087042648,-592.890792,0.001026,120]
[404380112,1770087042657,-681.468951,0.001026,120]
[404380114,1770087042666,-770.047109,0.001026,120]
[404380116,1770087042675,-858.625268,0.001026,120]
[404380117,1770087042684,-947.203426,0.001026,120]
[404380119,1770087042694,-5890.7,0.00104109,120]
[404380121,1770087042703,-500.0,0.00104109,120]
[404380123,1770087042712,-500.0,0.00104109,120]
[404380124,1770087042721,-500.0,0.00104109,120]
[404380126,1770087042730,-887.25,0.00104109,120]
[404380128,1770087042739,-285.1407969,0.00104109,2]
[404380129,1770087042748,-500.0,0.00104109,120]
[404380131,1770087042758,-2088.2,0.00104109,120]
[404380133,1770087042766,-1019.02,0.00104109,120]
[404380134,1770087042776,-981.74,0.00104109,120]
[404380136,1770087042785,-9824.34,0.00104109,120]
[404380138,1770087042794,-729.71,0.00104109,120]
[404380139,1770087042803,-500.0,0.00104109,120]
[404380141,1770087042812,-150.04759169,0.00105503,2]
[404380142,1770087042823,-660.29,0.00109,30]
[404380144,1770087042832,-1389.11,0.00109588,2]
[404380146,1770087042844,-5890.7,0.00109589,120]
[404380148,1770087042856,-500.0,0.00109589,120]
[404380150,1770087042868,-500.0,0.00109589,120]
[404380152,1770087042880,-500.0,0.00109589,120]
[404380154,1770087042891,-887.25,0.00109589,120]
[404380156,1770087042901,-500.0,0.00109589,120]
[404380158,1770087042911,-2088.2,0.00109589,120]
[404380160,1770087042923,-1019.02,0.00109589,120]
[404380162,1770087042936,-981.74,0.00109589,120]
[404380164,1770087042948,-9824.34,0.00109589,120]
[404380167,1770087042960,-729.71,0.00109589,120]
[404380169,1770087042971,-500.0,0.00109589,120]
[404380171,1770087042984,-27188.294345,0.00109725,120]
[404380173,1770087042994,-2000.0,0.00115,120]
[404380175,1770087043006,-1389.11,0.00115067,2]
[404380177,1770087043018,-5890.7,0.00115068,120]
[404380179,1770087043031,-500.0,0.00115068,120]
[404380181,1770087043043,-500.0,0.00115068,120]
[404380183,1770087043053,-500.0,0.00115068,120]
[404380185,1770087043064,-887.25,0.00115068,120]
[404380187,1770087043075,-151.0,0.00115068,120]
[404380189,1770087043087,-151.02538,0.00115068,120]
[404380191,1770087043098,-500.0,0.00115068,120]
[404380193,1770087043108,-2088.2,0.00115068,120]
[404380195,1770087043120,-1019.02,0.00115068,120]
[404380197,1770087043131,-981.74,0.00115068,120]
[404380199,1770087043142,-9824.34,0.00115068,120]
[404380201,1770087043154,-729.71,0.00115068,120]
[404380203,1770087043164,-500.0,0.00115068,120]
[404380205,1770087043174,-150.04759169,0.00118658,2]
[404380207,1770087043184,-1389.11,0.00120546,2]
[404380209,1770087043196,-5890.7,0.00120547,120]
[404380211,1770087043206,-500.0,0.00120547,120]
[404380213,1770087043218,-500.0,0.00120547,120]
[404380215,1770087043229,-500.0,0.00120547,120]
[404380217,1770087043241,-887.25,0.00120547,120]
[404380219,1770087043252,-500.0,0.00120547,120]
[404380221,1770087043264,-2088.2,0.00120547,120]
[404380223,1770087043276,-1019.02,0.00120547,120]
[404380225,1770087043288,-981.74,0.00120547,120]
[404380227,1770087043300,-9824.34,0.00120547,120]
[404380229,1770087043312,-729.71,0.00120547,120]
[404380231,1770087043324,-209.33596131,0.00120547,120]
[404380233,1770087043333,-3000.0,0.001245,120]
[404380235,1770087043344,-5890.7,0.00126027,120]
[404380237,1770087043354,-643.21,0.00126027,120]
[404380239,1770087043364,-500.0,0.00126027,120]